bitfinex-derivatives/quotes_SOLF0:USTF0_20250125
["timestamp","ask_amount","ask_price","bid_price","bid_amount"]
[1737824300246,3.9229,254.95,254.92,0.02642008]
[1737824300553,9.62118288,255.03,254.92,0.02642008]
[1737824302051,3.9232,254.93,254.92,0.02642008]
[1737824303357,3.9225,254.98,254.92,0.02642008]
[1737824303559,9.62118288,255.03,254.92,0.02642008]
[1737824305156,3.9227,254.96,254.92,3.94972008]
[1737824305849,9.62118288,255.03,254.92,0.02642008]
[1737824307156,3.9232,254.93,254.92,0.02642008]
[1737824310061,3.9232,254.93,254.83,3.9246]
[1737824310264,2.7065,254.96,254.78,9.62118288]
[1737824310961,2.7065,254.96,254.82,3.9249]
[1737824311153,2.7065,254.96,254.78,9.62118288]
[1737824311361,0.02642008,254.92,254.86,0.02686335]
[1737824311957,3.9237,254.9,254.86,3.95106335]
[1737824312754,3.924,254.88,254.86,0.02686335]
[1737824312963,0.02642008,254.92,254.86,0.02686335]
[1737824313863,3.9241,254.87,254.86,0.02686335]
[1737824315862,0.02642008,254.92,254.86,0.02686335]
[1737824316562,0.02642008,254.92,254.89,3.9236]
[1737824316763,0.02642008,254.92,254.86,9.64804623]
[1737824318458,0.02642008,254.92,254.91,3.9235]
[1737824318763,3.9222,255.0,254.9,9.62118288]
[1737824319062,1.2599,255.02,254.9,9.62118288]
[1737824319899,1.2599,255.02,254.93,0.02857785]
[1737824320069,3.9223,254.99,254.93,3.95167785]
[1737824320569,1.2599,255.02,254.93,0.02857785]
[1737824320870,3.9229,254.95,254.93,0.02857785]
[1737824321971,1.2599,255.02,254.93,0.02857785]
[1737824322171,3.9229,254.95,254.93,0.02857785]
[1737824323972,3.923,254.94,254.93,0.02857785]
[1737824324970,1.2599,255.02,254.93,0.02857785]
[1737824325475,3.9224,254.99,254.93,3.95177785]
[1737824325673,1.2599,255.02,254.93,3.95177785]
[1737824326174,1.2599,255.02,254.93,0.02857785]
[1737824326376,3.922,255.01,254.96,3.9227]
[1737824326673,2.6813,255.04,254.93,0.02857785]
[1737824326874,3.9216,255.03,254.96,3.9227]
[1737824327075,3.9216,255.03,254.93,0.02857785]
[1737824327465,2.6813,255.04,254.93,0.02857785]
[1737824327674,3.922,255.01,254.93,0.02857785]
[1737824328176,3.922,255.01,254.94,3.9229]
[1737824328772,2.6813,255.04,254.94,3.9229]
[1737824328976,3.9222,255.0,254.94,3.9229]
[1737824329279,3.9222,255.0,254.93,0.02857785]
[1737824329474,3.9222,255.0,254.95,3.9228]
[1737824330374,3.9219,255.02,254.96,3.9227]
[1737824330578,9.62118288,255.11,254.94,9.62118288]
[1737824331080,9.62118288,255.11,255.0,0.02983279]
[1737824331772,3.9214,255.05,255.0,3.95183279]
[1737824332179,3.9214,255.05,255.0,0.02983279]
[1737824332376,9.62118288,255.11,255.0,0.02983279]
[1737824332678,3.9207,255.09,255.0,0.02983279]
[1737824332880,2.6397,255.12,255.02,3.9217]
[1737824333078,3.9209,255.08,255.02,3.9217]
[1737824333279,12.26088288,255.12,255.0,0.02983279]
[1737824334080,12.26088288,255.12,255.0,3.95183279]
[1737824334081,3.9212,255.06,255.0,3.95183279]
[1737824334282,12.26088288,255.12,255.0,3.95183279]
[1737824335281,12.26088288,255.12,255.0,0.02983279]
[1737824335481,12.26088288,255.12,255.01,3.9219]
[1737824336481,9.62118288,255.16,255.0,0.02983279]
[1737824336681,9.62118288,255.16,254.98,9.62118288]
[1737824336881,9.62118288,255.16,255.05,0.02853059]
[1737824337082,3.9209,255.08,255.05,0.02853059]
[1737824338183,3.92,255.14,255.06,9.62118288]
[1737824338777,3.92,255.14,255.09,3.9206]
[1737824339276,9.62118288,255.25,255.13,3.92]
[1737824339482,195.0,255.3,254.93,9.62118288]
[1737824339483,13.53918288,255.29,255.1,9.62118288]
[1737824339677,3.9187,255.23,255.16,0.02625442]
[1737824340284,3.9191,255.2,255.16,0.02625442]
[1737824340479,13.53918288,255.29,255.16,0.02625442]
[1737824340683,9.62118288,255.25,255.16,0.02625442]
[1737824341286,13.53918288,255.29,255.16,0.02625442]
[1737824341585,3.919,255.2,255.16,0.02625442]
[1737824341984,13.53918288,255.29,255.16,0.02625442]
[1737824342281,3.9194,255.18,255.16,0.02625442]
[1737824343281,3.9191,255.2,255.16,0.02625442]
[1737824343482,13.53918288,255.29,255.16,0.02625442]
[1737824344386,3.9182,255.26,255.16,0.02625442]
[1737824344583,13.53918288,255.29,255.16,0.02625442]
[1737824344784,3.918,255.29,255.18,9.62118288]
[1737824344988,3.9182,255.26,255.18,9.62118288]
[1737824345288,9.62118288,255.33,255.18,9.62118288]
[1737824345491,9.62118288,255.33,255.19,0.02995756]
[1737824346192,3.9181,255.26,255.19,0.02995756]
[1737824346393,9.62118288,255.33,255.19,0.02995756]
[1737824347094,3.9177,255.29,255.19,0.02995756]
[1737824347294,9.62118288,255.33,255.19,0.02995756]
[1737824348187,3.9189,255.21,255.19,0.02995756]
[1737824348394,9.62118288,255.33,255.19,0.02995756]
[1737824348594,3.9177,255.29,255.19,0.02995756]
[1737824348795,9.62118288,255.37,255.19,0.02995756]
[1737824349296,9.62118288,255.37,255.25,0.02797606]
[1737824349498,3.9181,255.26,255.25,0.02797606]
[1737824358701,9.62118288,255.29,255.14,9.62118288]
[1737824358896,1.2701,255.28,255.18,9.62118288]
[1737824359095,9.62118288,255.33,255.18,9.62118288]
[1737824359299,9.62118288,255.37,255.18,9.62118288]
[1737824359499,9.62118288,255.37,255.23,3.9185]
[1737824359801,0.02797606,255.33,255.27,0.02922055]
[1737824360002,3.9178,255.29,255.27,0.02922055]
[1737824365398,0.02797606,255.33,255.27,0.02922055]
[1737824365599,3.9176,255.3,255.27,0.02922055]
[1737824365798,0.02797606,255.33,255.27,0.02922055]
[1737824366102,0.02797606,255.33,255.27,6.15671554]
[1737824366507,0.02797606,255.33,255.31,6.12749499]
[1737824366710,0.02797606,255.33,255.31,10.04479499]
[1737824369211,0.02797606,255.33,255.31,6.12749499]
[1737824370211,6.12749499,255.41,255.31,6.12749499]
[1737824370411,6.12749499,255.41,255.33,6.12749499]
[1737824370611,3.9161,255.39,255.33,10.04439499]
[1737824371410,3.9161,255.39,255.33,10.07163564]
[1737824371906,3.9163,255.38,255.33,10.07163564]
[1737824372616,3.9163,255.38,255.33,6.15473564]
[1737824373617,6.12749499,255.4,255.33,6.15473564]
[1737824373814,3.9164,255.37,255.33,6.15473564]
[1737824374711,3.9164,255.38,255.33,6.15473564]
[1737824375215,6.12749499,255.36,255.33,0.02724065]
[1737824375415,3.9169,255.34,255.33,0.02724065]
[1737824378219,3.9167,255.36,255.33,0.02724065]
[1737824378716,3.9158,255.42,255.35,6.12749499]
[1737824378916,3.9158,255.42,255.37,6.12749499]
[1737824380209,3.9158,255.42,255.37,10.04379499]
[1737824380521,5.1558,255.44,255.39,6.12749499]
[1737824380718,3.9154,255.44,255.39,6.12749499]
[1737824381218,3.9152,255.46,255.41,6.12749499]
[1737824381615,6.12749499,255.5,255.41,6.12749499]
[1737824381815,3.9149,255.48,255.42,3.9156]
[1737824382016,3.9149,255.48,255.43,6.12749499]
[1737824384222,3.9149,255.48,255.43,10.04299499]
[1737824385816,8.65139499,255.57,255.48,3.9147]
[1737824386119,6.12749499,255.61,255.53,6.12749499]
[1737824387213,3.9132,255.58,255.53,6.12749499]
[1737824388024,3.9131,255.59,255.53,6.12749499]
[1737824389222,6.12749499,255.63,255.55,6.12749499]
[1737824389414,6.12749499,255.65,255.57,6.12749499]
[1737824389622,9.55005503,255.69,255.56,0.02687775]
[1737824390715,2.76,255.76,255.56,0.02687775]
[1737824390716,9.55005503,255.8,255.64,9.55005503]
[1737824390915,9.55005503,255.84,255.69,9.55005503]
[1737824391119,9.55005503,255.81,255.65,9.55005503]
[1737824391417,1.3428,255.8,255.7,0.02528271]
[1737824392322,3.9111,255.72,255.7,0.02528271]
[1737824393619,1.3428,255.8,255.7,0.02528271]
[1737824393823,3.911,255.73,255.7,0.02528271]
[1737824394221,1.3428,255.8,255.7,0.02528271]
[1737824395021,3.9102,255.78,255.7,0.02528271]
[1737824395322,1.3428,255.8,255.7,0.02528271]
[1737824395523,3.9105,255.76,255.7,0.02528271]
[1737824395726,2.5633,255.85,255.7,0.02528271]
[1737824396627,3.9102,255.78,255.7,3.93648271]
[1737824396922,2.5633,255.85,255.7,0.02528271]
[1737824397426,2.5633,255.85,255.73,9.55005503]
[1737824397823,3.9098,255.81,255.76,0.02935109]
[1737824398129,2.5633,255.85,255.76,0.02935109]
[1737824399627,3.9097,255.81,255.76,0.02935109]
[1737824400521,9.55005503,255.84,255.69,9.55005503]
[1737824400725,9.55005503,255.79,255.61,9.55005503]
[1737824401026,9.55005503,255.75,255.56,9.55005503]
[1737824401225,9.55005503,255.67,255.52,9.55005503]
[1737824401428,2.5403,255.66,255.52,9.55005503]
[1737824401729,1.2978,255.66,255.6,9.55005503]
[1737824401928,1.2425,255.74,255.6,9.55005503]
[1737824402125,3.9114,255.7,255.6,9.55005503]
[1737824402327,2.5403,255.74,255.6,9.55005503]
[1737824403222,2.5403,255.74,255.64,0.02618792]
[1737824404925,2.5403,255.74,255.64,9.57624295]
[1737824405328,2.5403,255.74,255.65,3.9121]
[1737824405629,2.5403,255.74,255.64,9.57624295]
[1737824406023,1.3532,255.78,255.64,9.57624295]
[1737824406230,5.2634,255.78,255.68,3.9116]
[1737824406423,1.3532,255.78,255.68,3.9116]
[1737824406624,1.3532,255.78,255.64,9.55005503]
[1737824406828,1.3532,255.78,255.7,0.02639122]
[1737824407030,3.9105,255.76,255.7,0.02639122]
[1737824407524,1.3532,255.78,255.7,0.02639122]
[1737824407726,3.9099,255.8,255.72,3.911]
[1737824408329,2.5642,255.82,255.7,0.02639122]
[1737824408726,2.5642,255.82,255.7,1.42639122]
[1737824409433,3.91,255.79,255.72,3.911]
[1737824410930,3.91,255.79,255.71,9.55005503]
[1737824411134,3.9097,255.81,255.71,9.55005503]
[1737824411333,2.5642,255.82,255.71,9.55005503]
[1737824411635,2.5642,255.82,255.7,1.42639122]
[1737824411636,3.9112,255.71,255.7,1.42639122]
[1737824411837,9.55005503,255.75,255.69,3.65]
[1737824412631,3.9114,255.7,255.69,3.65]
[1737824412837,9.55005503,255.79,255.69,3.65]
[1737824413037,0.02672466,255.72,255.69,8.2]
[1737824413231,3.9112,255.71,255.69,8.2]
[1737824414238,3.9112,255.71,255.69,11.32]
[1737824414632,3.9112,255.71,255.69,15.21]
[1737824416033,3.9117,255.68,255.67,0.02596121]
[1737824416635,3.9121,255.65,255.64,3.12]
[1737824416833,9.55005503,255.67,255.52,9.55005503]
[1737824417033,3.9122,255.65,255.57,3.9133]
[1737824417240,1.3521,255.7,255.6,9.55005503]
[1737824417439,1.3521,255.7,255.57,5.76]
[1737824417742,0.02939403,255.66,255.61,0.02464323]
[1737824418039,0.02939403,255.66,255.61,3.14464323]
[1737824419136,9.55005503,255.79,255.64,9.55005503]
[1737824419337,3.9108,255.74,255.68,3.9115]
[1737824419537,9.55005503,255.79,255.64,9.55005503]
[1737824419738,9.55005503,255.75,255.61,3.12]
[1737824420337,0.02329184,255.71,255.65,0.02822052]
[1737824420531,3.9116,255.69,255.65,0.02822052]
[1737824420739,0.02329184,255.71,255.65,0.02822052]
[1737824421240,3.9119,255.67,255.65,0.02822052]
[1737824421738,3.9119,255.67,255.65,6.61822052]
[1737824422534,3.9116,255.69,255.65,6.61822052]
[1737824422938,0.02329184,255.71,255.65,6.61822052]
[1737824423137,3.9118,255.68,255.65,6.61822052]
[1737824426142,3.9114,255.7,255.65,10.53032052]
[1737824426441,0.02329184,255.71,255.65,6.61822052]
[1737824427543,3.9115,255.69,255.65,6.61822052]
[1737824428034,3.912,255.66,255.65,6.61822052]
[1737824430537,3.9132,255.58,255.52,5.97]
[1737824430937,9.55005503,255.59,255.52,5.97]
[1737824431137,9.55005503,255.59,255.32,9.55005503]
[1737824431138,9.55005503,255.59,255.4,9.55005503]
[1737824431342,9.55005503,255.55,255.4,9.55005503]
[1737824431542,9.55005503,255.55,255.42,3.9156]
[1737824431744,0.02816206,255.5,255.45,0.02733661]
[1737824432345,0.02816206,255.5,255.46,3.9149]
[1737824432542,0.02816206,255.5,255.45,11.95733661]
[1737824432735,9.55005503,255.59,255.45,11.95733661]
[1737824432941,9.55005503,255.63,255.45,11.95733661]
[1737824433142,9.55005503,255.63,255.46,2.5425]
[1737824433443,3.9132,255.58,255.46,2.5425]
[1737824433842,0.0233503,255.55,255.49,0.02933361]
[1737824434341,0.0233503,255.55,255.49,3.15933361]
[1737824435048,9.57340533,255.55,255.49,3.15933361]
[1737824436745,3.9143,255.51,255.49,3.15933361]
[1737824438149,3.9141,255.53,255.49,3.15933361]
[1737824439354,9.57340533,255.55,255.49,3.15933361]
[1737824440044,3.9143,255.51,255.49,3.15933361]
[1737824441752,13.46435503,255.51,255.49,3.15933361]
[1737824442452,3.9149,255.47,255.46,6.29]
[1737824443153,13.46495503,255.47,255.45,11.57195789]
[1737824443347,13.46495503,255.47,255.45,9.49905789]
[1737824443547,3.9151,255.46,255.43,0.02989927]
[1737824443749,9.55005503,255.44,255.34,3.9168]
[1737824443956,9.55005503,255.44,255.42,0.02744047]
[1737824444252,3.9158,255.42,255.28,9.55005503]
[1737824444452,9.55005503,255.44,255.42,0.7842]
[1737824444648,9.55005503,255.44,255.42,9.3442]
[1737824444854,9.55005503,255.44,255.42,17.1942]
[1737824446149,3.9155,255.43,255.42,17.1942]
[1737824446353,9.55005503,255.44,255.4,0.02746235]
[1737824446648,3.9169,255.35,255.28,3.9177]
[1737824447048,3.9169,255.35,255.24,4.0359]
[1737824447253,26.169,255.54,255.24,4.0359]
[1737824447254,9.55005503,255.4,255.24,13.58595503]
[1737824447650,9.55005503,255.4,255.32,3.917]
[1737824447850,0.02748566,255.35,255.29,0.02909204]
[1737824448052,9.55005503,255.44,255.29,0.02909204]
[1737824448456,3.9155,255.43,255.37,3.9164]
[1737824448949,2.579,255.54,255.4,3.9158]
[1737824448950,3.915,255.47,255.4,3.9158]
[1737824449151,9.55005503,255.52,255.36,9.55005503]
[1737824449354,0.02761852,255.46,255.41,0.02838532]
[1737824449754,9.55005503,255.44,255.41,0.02838532]
[1737824450861,3.9155,255.43,255.41,0.02838532]
[1737824451662,3.9161,255.39,255.32,3.917]
[1737824451856,9.55005503,255.39,255.32,3.917]
[1737824452161,9.55005503,255.39,255.29,1.2802]
[1737824452458,9.55005503,255.47,255.3,9.55005503]
[1737824452666,0.02701687,255.37,255.35,3.9166]
[1737824452866,9.55005503,255.47,255.3,9.55005503]
[1737824453159,9.55005503,255.39,255.29,1.2802]
[1737824453361,9.55005503,255.39,255.3,1.2602]
[1737824453667,15.31737075,255.39,255.3,1.2602]
[1737824453961,0.02784613,255.37,255.32,0.02767231]
[1737824455962,15.31737075,255.35,255.18,1.2602]
[1737824456167,15.31737075,255.31,255.18,1.2602]
[1737824456567,3.918,255.27,255.21,3.9189]
[1737824456968,15.31737075,255.31,255.18,1.2602]
[1737824457169,3.9183,255.25,255.18,1.2602]
[1737824457363,3.9183,255.25,255.23,0.0270362]
[1737824457558,3.9183,255.25,255.23,4.7170362]
[1737824457766,3.9183,255.25,255.23,4.69]
[1737824458060,3.9187,255.22,255.21,7.66e-06]
[1737824458362,15.31737075,255.19,255.1,1.3223]
[1737824458560,15.31737075,255.19,255.1,4.4523]
[1737824458759,15.31737075,255.19,255.1,19.4923]
[1737824459161,15.31737075,255.19,255.1,24.12]
[1737824459366,15.31737075,255.15,255.12,0.02831025]
[1737824459569,0.02835414,255.17,255.12,0.02831025]
[1737824459768,15.31737075,255.23,255.1,24.12]
[1737824459969,15.31737075,255.23,255.12,0.02634502]
[1737824459970,0.02972187,255.17,255.12,0.02634502]
[1737824460966,3.9201,255.14,255.12,0.02634502]
[1737824461867,3.9204,255.11,255.1,24.12]
[1737824462067,15.31737075,255.11,255.0,3.876]
[1737824462274,15.31737075,255.07,254.91,4.80536954]
[1737824462465,3.9219,255.02,254.92,1.2857]
[1737824463075,3.9219,255.02,254.94,0.02806159]
[1737824463276,0.02798723,255.0,254.94,0.02806159]
[1737824463774,0.02798723,255.0,254.95,3.9228]
[1737824463973,15.31737075,255.12,254.94,0.02806159]
[1737824464178,15.31737075,255.16,254.97,15.31737075]
[1737824464378,3.92,255.14,254.98,1.2863]
[1737824464573,15.31737075,255.16,254.98,1.2863]
[1737824464877,15.31737075,255.2,254.98,1.2863]
[1737824465181,0.02513694,255.12,255.06,0.02481044]
[1737824465576,15.31737075,255.24,255.06,0.02481044]
[1737824465776,15.31737075,255.24,255.06,1.38501044]
[1737824465971,15.31737075,255.24,255.06,1.3602]
[1737824466271,0.1698,255.31,255.06,1.3602]
[1737824466272,15.31737075,255.28,255.06,1.3602]
[1737824466474,3.9175,255.3,255.22,3.9186]
[1737824466671,0.02854229,255.2,255.14,0.02885958]
[1737824466870,15.31737075,255.32,255.09,15.31737075]
[1737824467071,15.31737075,255.28,255.08,4.80536954]
[1737824467271,15.31737075,255.24,255.08,4.80536954]
[1737824467782,3.9191,255.2,255.08,4.80536954]
[1737824467978,0.02978646,255.19,255.13,0.02576144]
[1737824468883,3.9199,255.15,255.13,6.144e-05]
[1737824469076,15.31737075,255.16,255.01,3.9219]
[1737824469077,15.31737075,255.16,255.01,1.2979]
[1737824469278,15.31737075,255.11,255.01,1.2979]
[1737824469583,15.31737075,255.03,254.81,3.84890779]
[1737824469784,15.31737075,254.98,254.81,1.2979]
[1737824470076,15.31737075,254.98,254.92,10.84713428]
[1737824470283,0.02473662,254.98,254.92,10.84713428]
[1737824470784,3.9227,254.96,254.92,10.84713428]
[1737824470980,15.31737075,254.93,254.92,16.66713428]
[1737824471180,15.31737075,254.93,254.81,1.2979]
[1737824471381,15.31737075,254.89,254.81,1.2979]
[1737824471579,15.31737075,254.93,254.81,1.2979]
[1737824471777,15.31737075,254.93,254.81,5.2228]
[1737824472085,15.31737075,254.97,254.82,1.3252]
[1737824472288,0.02480846,254.9,254.87,3.924]
[1737824472486,15.31737075,255.01,254.84,0.02786825]
[1737824472687,15.31737075,255.01,254.82,12.8552]
[1737824473183,15.31737075,255.01,254.82,16.70410779]
[1737824473385,15.31737075,255.01,254.82,16.69966421]
[1737824473586,0.0268089,254.94,254.89,0.02585025]
[1737824474987,15.31737075,254.93,254.89,0.02585025]
[1737824475186,15.31737075,254.93,254.82,12.8552]
[1737824475485,15.31737075,254.89,254.82,12.8552]
[1737824476182,15.31737075,254.89,254.82,11.53]
[1737824476383,0.028216,254.88,254.83,0.02479886]
[1737824476686,0.028216,254.88,254.82,11.53]
[1737824476687,15.31737075,254.85,254.74,4.80598747]
[1737824476985,0.028216,254.88,254.74,4.80598747]
[1737824476986,15.31737075,254.8,254.74,4.80598747]
[1737824477187,15.31737075,254.8,254.69,13.45642199]
[1737824477486,15.31737075,254.85,254.69,13.45642199]
[1737824477685,0.02759201,254.81,254.76,0.02817548]
[1737824477886,0.02759201,254.81,254.77,10.85276004]
[1737824478084,0.02759201,254.81,254.77,14.77836004]
[1737824479384,0.02759201,254.81,254.79,3.9252]
[1737824480892,15.31737075,254.89,254.82,3.9248]
[1737824481085,19.24117075,254.89,254.78,1.2846]
[1737824481293,15.31737075,254.89,254.78,1.2846]
[1737824481490,15.31737075,254.85,254.77,10.85276004]
[1737824481790,15.31737075,254.81,254.77,10.85276004]
[1737824482090,15.31737075,254.81,254.78,0.02927199]
[1737824482290,3.9252,254.8,254.78,0.02927199]
[1737824482485,3.9252,254.8,254.77,5.06]
[1737824482690,15.31737075,254.81,254.77,5.06]
[1737824483385,0.02569931,254.84,254.77,5.06]
[1737824485087,0.02569931,254.84,254.82,3.9248]
[1737824487390,15.31737075,254.93,254.79,1.3449]
[1737824487591,15.31737075,254.93,254.86,3.9242]
[1737824487792,15.31737075,254.98,254.79,9.98027357]
[1737824487985,15.31737075,255.02,254.81,8.63537357]
[1737824488188,15.31737075,255.02,254.83,23.95274432]
[1737824488387,3.9225,254.98,254.84,1.3235]
[1737824488592,0.02762604,254.95,254.9,0.03000641]
[1737824489188,3.9234,254.92,254.9,0.03000641]
[1737824491097,3.9241,254.88,254.8,3.9251]
[1737824491295,15.31737075,254.94,254.79,1.3449]
[1737824491491,15.31737075,254.94,254.82,3.9248]
[1737824491989,15.31737075,254.94,254.79,1.3449]
[1737824492294,0.02575962,254.89,254.84,0.02659041]
[1737824492595,0.02575962,254.89,254.86,3.9241]
[1737824492794,0.02575962,254.89,254.84,0.02659041]
[1737824493491,3.924,254.88,254.84,0.02659041]
[1737824493694,0.02575962,254.89,254.84,0.25659041]
[1737824494695,0.02575962,254.89,254.84,4.18109041]
[1737824494892,0.02575962,254.89,254.84,0.25659041]
[1737824495196,0.02575962,254.89,254.87,3.9241]
[1737824496297,3.94955962,254.89,254.84,0.25659041]
[1737824496996,3.94955962,254.89,254.84,0.38659041]
[1737824497295,0.02575962,254.89,254.87,3.924]
[1737824497496,0.02575962,254.89,254.84,4.24659041]
[1737824497896,0.02575962,254.89,254.85,3.9243]
[1737824498294,0.02575962,254.89,254.84,4.24659041]
[1737824498598,0.02575962,254.89,254.86,3.9242]
[1737824498897,15.31737075,254.99,254.84,4.24659041]
[1737824499395,3.923,254.94,254.87,3.924]
[1737824499595,3.923,254.94,254.84,4.22]
[1737824500098,0.02878506,254.92,254.86,0.02993678]
[1737824500805,15.31737075,255.03,254.86,0.02993678]
[1737824501093,15.31737075,255.07,254.88,15.31737075]
[1737824501297,15.31737075,255.07,254.89,1.3528]
[1737824501996,0.02545609,255.01,254.95,0.02927773]
[1737824502190,15.31737075,255.03,254.89,1.3528]
[1737824502393,3.9223,254.99,254.95,0.02616207]
[1737824502800,0.02532282,255.01,254.95,0.02616207]
[1737824506198,0.02532282,255.01,254.98,3.9223]
[1737824507001,15.31737075,255.07,254.95,0.02616207]
[1737824507300,3.9211,255.07,254.95,0.02616207]
[1737824507997,15.31737075,255.07,254.95,0.25616207]
[1737824508296,15.31737075,255.03,254.95,0.25616207]
[1737824508499,0.02890491,255.04,254.95,0.25616207]
[1737824508799,0.02890491,255.04,254.97,0.0270767]
[1737824508997,3.9219,255.02,254.97,0.0270767]
[1737824509201,0.02890491,255.04,254.97,0.0270767]
[1737824509596,15.31737075,255.03,254.97,0.0270767]
[1737824510293,3.9224,254.98,254.97,0.0270767]
[1737824510503,15.31737075,255.03,254.97,0.0270767]
[1737824511404,3.9224,254.98,254.97,0.0270767]
[1737824520304,3.9222,255.0,254.97,4.5870767]
[1737824521108,3.95050491,255.04,254.97,8.5095767]
[1737824521504,0.02890491,255.04,255.0,3.9221]
[1737824521706,0.02890491,255.04,254.98,1.3071]
[1737824522712,0.02890491,255.04,255.02,3.9218]
[1737824522909,3.9204,255.11,254.98,1.3071]
[1737824523106,73.44,255.14,254.98,1.3071]
[1737824523815,3.9207,255.1,255.02,3.9218]
[1737824524113,73.44,255.14,255.03,0.02665338]
[1737824524114,0.02806673,255.09,255.03,0.02665338]
[1737824524708,0.02806673,255.09,255.03,3.94825338]
[1737824525009,0.02806673,255.09,255.03,0.02665338]
[1737824525612,15.31737075,255.19,255.03,0.02665338]
[1737824526009,15.31737075,255.19,255.06,3.921]
[1737824526213,15.31737075,255.19,255.03,0.1]
[1737824526415,3.9202,255.13,255.07,3.921]
[1737824526718,15.31737075,255.15,255.07,0.02608115]
[1737824526914,3.9202,255.13,255.07,0.02608115]
[1737824527113,15.31737075,255.15,255.03,0.1]
[1737824527413,15.31737075,255.15,255.08,0.0249887]
[1737824527614,3.9207,255.1,255.08,0.0249887]
[1737824528819,15.31737075,255.2,255.08,0.0249887]
[1737824529117,15.31737075,255.2,255.03,0.1]
[1737824529311,15.31737075,255.24,255.03,15.41737075]
[1737824529514,15.31737075,255.19,255.11,4.23e-06]
[1737824529815,15.31737075,255.12,255.03,0.1]
[1737824530710,3.9213,255.05,255.03,0.1]
[1737824531116,15.31737075,255.07,255.01,0.02595592]
[1737824531312,3.9218,255.02,255.01,0.02595592]
[1737824533623,3.94594203,255.07,255.01,0.02595592]
[1737824534320,0.02484203,255.07,255.01,0.02595592]
[1737824534822,0.02484203,255.07,255.04,3.9215]
[1737824535515,0.02484203,255.07,255.02,2.6399]
[1737824535720,15.31737075,255.19,255.02,2.6399]
[1737824535919,15.31737075,255.23,255.02,17.95727075]
[1737824536116,3.9193,255.19,255.1,3.9205]
[1737824536318,15.31737075,255.23,255.1,3.9205]
[1737824536820,3.9192,255.19,255.14,0.02833023]
[1737824537023,15.31737075,255.23,255.14,0.02833023]
[1737824537924,3.9195,255.17,255.14,0.02833023]
[1737824538625,3.9197,255.16,255.14,0.02833023]
[1737824540529,3.9195,255.18,255.14,0.02833023]
[1737824541129,3.9195,255.17,255.14,0.02833023]
[1737824541331,15.31737075,255.19,255.14,0.02833023]
[1737824541830,3.9197,255.16,255.14,0.02833023]
[1737824542026,195.4176,255.31,255.14,0.02833023]
[1737824542027,15.31737075,255.23,255.14,0.02833023]
[1737824542227,195.0,255.38,255.2,3.9189]
[1737824542228,3.9178,255.28,255.2,3.9189]
[1737824542529,15.31737075,255.32,255.16,0.02553905]
[1737824542827,15.31737075,255.32,255.14,3.8394]
[1737824543029,15.31737075,255.32,255.21,0.02961409]
[1737824543431,15.31737075,255.32,255.21,3.94841409]
[1737824543626,88.71737075,255.36,255.21,0.02961409]
[1737824543830,3.9172,255.32,255.23,3.9184]
[1737824544129,88.71737075,255.36,255.15,15.31737075]
[1737824544329,88.71737075,255.36,255.25,0.02572929]
[1737824544930,3.9181,255.27,255.25,0.02572929]
[1737824545333,15.31737075,255.28,255.14,3.8394]
[1737824545533,3.9191,255.2,255.14,3.8394]
[1737824545730,15.31737075,255.24,255.14,3.8394]
[1737824545935,15.31737075,255.24,255.14,1.2896]
[1737824546135,15.31737075,255.24,255.13,0.21]
[1737824546336,3.9198,255.15,255.13,0.21]
[1737824547033,15.31737075,255.16,255.11,0.02931269]
[1737824547233,3.9203,255.12,255.11,0.02931269]
[1737824548234,3.9203,255.12,255.11,1.269e-05]
[1737824548434,3.921,255.07,255.01,1.346]
[1737824548739,15.31737075,255.12,255.01,1.346]
[1737824549141,3.9213,255.05,255.01,1.346]
[1737824549341,15.31737075,255.12,254.98,1.2455]
[1737824549543,0.02939046,255.06,255.0,0.02856238]
[1737824549934,3.9219,255.02,255.0,0.02856238]
[1737824550439,0.02939046,255.06,255.0,0.02856238]
[1737824552744,3.9215,255.04,255.0,0.02856238]
[1737824553641,0.02939046,255.06,255.0,0.02856238]
[1737824554936,0.02939046,255.06,255.0,3.95066238]
[1737824555147,0.02939046,255.06,255.0,0.02856238]
[1737824555946,18.19737075,255.19,255.0,0.02856238]
[1737824556143,18.19737075,255.19,254.98,4.12]
[1737824556949,15.31737075,255.19,254.98,4.12]
[1737824557348,0.02563633,255.11,255.06,0.02729918]
[1737824558346,15.34300708,255.11,255.06,0.02729918]
[1737824558751,3.921,255.07,255.06,0.02729918]